bitfinex/quotes_BTCUSD_20250423
["timestamp","ask_amount","ask_price","bid_price","bid_amount"]
[1745443299391,0.0493,93765.0,93746.0,0.21734119]
[1745443303766,0.0493,93765.0,93744.0,0.04020245]
[1745443304223,0.0493,93765.0,93746.0,0.21334119]
[1745443305703,0.0493,93765.0,93746.0,0.21434119]
[1745443306114,0.0493,93765.0,93746.0,0.21534119]
[1745443307226,0.0493,93765.0,93746.0,0.002]
[1745443308739,0.01066507,93764.0,93746.0,0.002]
[1745443308930,0.0467,93763.0,93746.0,0.002]
[1745443309642,0.0467,93763.0,93746.0,0.001]
[1745443310653,0.0467,93763.0,93746.0,0.002]
[1745443310867,0.0467,93763.0,93746.0,0.001]
[1745443311161,0.0467,93763.0,93746.0,0.002]
[1745443311708,0.0467,93763.0,93746.0,0.001]
[1745443312141,0.0467,93763.0,93746.0,0.002]
[1745443312342,0.05736518,93763.0,93746.0,0.002]
[1745443312551,0.0467,93763.0,93746.0,0.002]
[1745443332415,0.0467,93763.0,93744.0,0.21187751]
[1745443333269,0.0467,93763.0,93745.0,0.21334297]
[1745443335413,0.0467,93763.0,93751.0,0.34]
[1745443335629,0.0467,93763.0,93753.0,0.21332506]
[1745443336728,0.0477,93763.0,93753.0,0.21332506]
[1745443336930,0.0467,93763.0,93751.0,0.34]
[1745443337129,0.0467,93763.0,93751.0,0.55332956]
[1745443337407,0.0477,93763.0,93751.0,0.55332956]
[1745443337639,0.0477,93763.0,93760.0,0.05]
[1745443338095,0.0467,93763.0,93760.0,0.05]
[1745443338753,0.0487,93763.0,93760.0,0.05]
[1745443340713,0.0507,93763.0,93760.0,0.05]
[1745443369587,0.0507,93763.0,93755.0,0.34]
[1745443369846,0.0507,93763.0,93753.0,0.34]
[1745443370582,0.0487,93763.0,93753.0,0.34]
[1745443370799,0.0477,93763.0,93753.0,0.34]
[1745443371134,0.0487,93763.0,93753.0,0.34]
[1745443371337,0.0487,93763.0,93755.0,0.34]
[1745443371974,0.0477,93763.0,93755.0,0.34]
[1745443372178,0.0487,93763.0,93755.0,0.34]
[1745443372710,0.0467,93763.0,93755.0,0.34]
[1745443372914,0.0477,93763.0,93755.0,0.34]
[1745443373107,0.0487,93763.0,93755.0,0.34]
[1745443373538,0.0487,93763.0,93753.0,0.34]
[1745443375468,0.0477,93763.0,93753.0,0.34]
[1745443375863,0.0487,93763.0,93753.0,0.34]
[1745443376088,0.0477,93763.0,93753.0,0.34]
[1745443376915,0.0487,93763.0,93753.0,0.34]
[1745443377043,0.0487,93763.0,93753.0,0.55332514]
[1745443378066,0.0487,93763.0,93753.0,0.21332514]
[1745443378693,0.0487,93763.0,93754.0,0.21332291]
[1745443379600,0.0477,93763.0,93754.0,0.21332291]
[1745443380434,0.0487,93763.0,93754.0,0.21332291]
[1745443382426,0.0487,93763.0,93753.0,0.24120381]
[1745443383364,0.0477,93763.0,93754.0,0.21332423]
[1745443383481,0.0467,93763.0,93754.0,0.21332423]
[1745443383935,0.0477,93763.0,93754.0,0.21332423]
[1745443384488,0.0487,93763.0,93754.0,0.21332423]
[1745443385295,0.0477,93763.0,93754.0,0.21332423]
[1745443385515,0.001,93763.0,93762.0,0.21330603]
[1745443385727,0.002,93763.0,93762.0,0.21330603]
[1745443386333,0.002,93763.0,93761.0,0.21330606]
[1745443386493,0.001,93763.0,93762.0,0.21330603]
[1745443386695,0.003,93763.0,93762.0,0.21330603]
[1745443388402,0.006,93763.0,93762.0,0.21330603]
[1745443388968,0.003,93763.0,93762.0,0.21330603]
[1745443389312,0.006,93763.0,93762.0,0.21330603]
[1745443390463,0.006,93763.0,93761.0,0.26330619]
[1745443391506,0.003,93763.0,93761.0,0.26330619]
[1745443391707,0.006,93763.0,93761.0,0.26330619]
[1745443392133,0.00046132,93766.0,93761.0,0.26330619]
[1745443392569,0.00046132,93766.0,93763.0,0.21330163]
[1745443393223,0.00246132,93766.0,93763.0,0.21330163]
[1745443393642,0.00546132,93766.0,93763.0,0.21330163]
[1745443394066,0.00546132,93766.0,93761.0,0.05]
[1745443395085,0.00346132,93766.0,93761.0,0.05]
[1745443395287,0.00646132,93766.0,93761.0,0.05]
[1745443395688,0.00346132,93766.0,93761.0,0.05]
[1745443395888,0.00046132,93766.0,93761.0,0.05]
[1745443396149,0.00446132,93766.0,93761.0,0.05]
[1745443408979,0.00446132,93766.0,93761.0,0.26330686]
[1745443409970,0.00446132,93766.0,93762.0,0.21330459]
[1745443410100,0.00446132,93766.0,93764.0,0.21330039]
[1745443410846,0.00046132,93766.0,93764.0,0.21330039]
[1745443411050,0.00046132,93766.0,93762.0,0.21330459]
[1745443411263,0.00646132,93766.0,93762.0,0.21330459]
[1745443411974,0.00046132,93766.0,93762.0,0.21330459]
[1745443412174,0.00246132,93766.0,93762.0,0.21330459]
[1745443412378,0.00446132,93766.0,93763.0,0.21330204]
[1745443413851,0.00246132,93766.0,93763.0,0.21330204]
[1745443414006,0.00046132,93766.0,93763.0,0.21330204]
[1745443414213,0.00346132,93766.0,93764.0,0.21329973]
[1745443414999,0.00646132,93766.0,93764.0,0.21329973]
[1745443415427,0.00346132,93766.0,93764.0,0.21329973]
[1745443415957,0.00346132,93766.0,93764.0,0.34]
[1745443416167,0.00646132,93766.0,93764.0,0.34]
[1745443424085,0.00646132,93766.0,93761.0,0.39]
[1745443424295,0.00646132,93766.0,93761.0,0.17220305]
[1745443424620,0.00646132,93766.0,93760.0,0.30370892]
[1745443424799,0.00346132,93766.0,93760.0,0.30370892]
[1745443424994,0.00046132,93766.0,93760.0,0.30370892]
[1745443425255,0.00246132,93766.0,93760.0,0.30370892]
[1745443425434,0.00446132,93766.0,93760.0,0.30370892]
[1745443425641,0.00246132,93766.0,93760.0,0.0904]
[1745443425795,0.00446132,93766.0,93760.0,0.0904]
[1745443426924,0.00646132,93766.0,93760.0,0.0904]
[1745443437111,0.048,93764.0,93753.0,0.24120381]
[1745443437332,0.048,93764.0,93760.0,0.0904]
[1745443437531,0.048,93764.0,93759.0,0.0904]
[1745443438321,0.049,93764.0,93759.0,0.0904]
[1745443438505,0.051,93764.0,93759.0,0.0904]
[1745443438644,0.051,93764.0,93755.0,0.34]
[1745443439004,0.049,93764.0,93756.0,0.0904]
[1745443439223,0.051,93764.0,93756.0,0.0904]
[1745443439656,0.05,93764.0,93756.0,0.0904]
[1745443440075,0.052,93764.0,93756.0,0.0904]
[1745443440432,0.05,93764.0,93756.0,0.0904]
[1745443440934,0.052,93764.0,93756.0,0.0904]
[1745443441134,0.052,93764.0,93762.0,0.05]
[1745443442009,0.049,93764.0,93762.0,0.05]
[1745443443107,0.051,93764.0,93762.0,0.05]
[1745443444137,0.05,93764.0,93762.0,0.05]
[1745443444551,0.052,93764.0,93762.0,0.05]
[1745443471450,0.052,93764.0,93752.0,0.13432463]
[1745443472247,0.05,93764.0,93752.0,0.13432463]
[1745443472671,0.051,93764.0,93752.0,0.13432463]
[1745443473759,0.049,93764.0,93752.0,0.13432463]
[1745443474201,0.049,93764.0,93751.0,0.34]
[1745443474403,0.049,93764.0,93752.0,0.21332878]
[1745443475207,0.048,93764.0,93752.0,0.21332878]
[1745443476178,0.049,93764.0,93752.0,0.21332878]
[1745443476386,0.049,93764.0,93751.0,0.55332902]
[1745443476608,0.049,93764.0,93752.0,0.21332738]
[1745443478076,0.048,93764.0,93752.0,0.21332738]
[1745443479688,0.049,93764.0,93752.0,0.21332738]
[1745443483678,0.049,93764.0,93751.0,0.55332922]
[1745443484102,0.049,93764.0,93754.0,0.34]
[1745443484490,0.048,93764.0,93754.0,0.34]
[1745443485314,0.049,93764.0,93754.0,0.34]
[1745443485631,0.05,93764.0,93754.0,0.34]
[1745443487537,0.05,93764.0,93752.0,0.21332878]
[1745443488416,0.049,93764.0,93752.0,0.21332878]
[1745443488737,0.05,93764.0,93752.0,0.21332878]
[1745443489480,0.049,93764.0,93752.0,0.21332878]
[1745443493784,0.049,93764.0,93750.0,0.52322476]
[1745443493987,0.049,93764.0,93750.0,0.55552216]
[1745443494189,0.049,93764.0,93751.0,0.21332924]
[1745443494996,0.049,93764.0,93753.0,0.21332512]
[1745443495403,0.048,93764.0,93753.0,0.21332512]
[1745443497895,0.049,93764.0,93753.0,0.21332512]
[1745443498898,0.049,93764.0,93751.0,0.21332924]
[1745443499511,0.049,93764.0,93752.0,0.21332711]
[1745443499868,0.048,93764.0,93752.0,0.21332711]
[1745443500274,0.048,93764.0,93747.0,0.22400665]
[1745443500275,0.0486,93763.0,93741.0,0.35151789]
[1745443500485,0.0592653,93762.0,93743.0,0.01066746]
[1745443500686,0.0486,93760.0,93741.0,0.0008502]
[1745443500896,0.010667,93747.0,93741.0,0.0008502]
[1745443501094,0.0486,93745.0,93741.0,0.0008502]
[1745443502670,0.0486,93745.0,93743.0,0.001]
[1745443503451,0.0496,93745.0,93743.0,0.001]
[1745443503649,0.0496,93745.0,93741.0,0.0008502]
[1745443504053,0.0536,93745.0,93741.0,0.0008502]
[1745443504817,0.0506,93745.0,93741.0,0.0008502]
[1745443505648,0.0506,93745.0,93731.0,0.21337657]
[1745443506069,0.0516,93745.0,93731.0,0.21337657]
[1745443506280,0.0516,93745.0,93732.0,0.21337428]
[1745443506542,0.0496,93745.0,93732.0,0.21337428]
[1745443507257,0.0486,93745.0,93733.0,0.55336992]
[1745443510049,0.0486,93745.0,93735.0,0.34]
[1745443511244,0.0486,93745.0,93733.0,0.21336992]
[1745443512107,0.0496,93745.0,93733.0,0.21336992]
[1745443512721,0.0486,93745.0,93733.0,0.21336992]
[1745443515861,0.0486,93745.0,93722.0,0.0004251]
[1745443515862,0.0469,93739.0,93722.0,0.0004251]
[1745443516064,0.0455,93738.0,93722.0,0.0004251]
[1745443516265,0.0469,93737.0,93722.0,0.0004251]
[1745443516422,0.0469,93737.0,93723.0,0.21381937]
[1745443516970,0.0469,93737.0,93723.0,0.0014251]
[1745443517347,0.0469,93737.0,93723.0,0.0004251]
[1745443517561,0.0469,93737.0,93723.0,0.00156361]
[1745443517721,0.0469,93737.0,93723.0,0.00056361]
[1745443517927,0.0469,93737.0,93723.0,0.00156361]
[1745443518330,0.0469,93737.0,93723.0,0.00056361]
[1745443518794,0.05756814,93737.0,93723.0,0.00056361]
[1745443519037,0.0469,93737.0,93723.0,0.00056361]
[1745443521644,0.05756814,93737.0,93723.0,0.00056361]
[1745443521845,0.05856814,93737.0,93723.0,0.00056361]
[1745443522237,0.05756814,93737.0,93723.0,0.00056361]
[1745443522459,0.01066848,93734.0,93723.0,0.00056361]
[1745443522657,0.01066894,93730.0,93723.0,0.00056361]
[1745443522859,0.0455,93728.0,93723.0,0.00056361]
[1745443523161,0.0469,93727.0,93723.0,0.00056361]
[1745443524840,0.0479,93727.0,93723.0,0.00056361]
[1745443525444,0.0489,93727.0,93723.0,0.00056361]
[1745443528815,0.0465,93725.0,93723.0,0.00056361]
[1745443529575,0.00299501,93724.0,93723.0,0.00056361]
[1745443529782,0.04949501,93724.0,93723.0,0.00056361]
[1745443530535,0.0465,93724.0,93723.0,0.00056361]
[1745443530732,0.04949501,93724.0,93723.0,0.00056361]
[1745443530937,0.05149501,93724.0,93723.0,0.00056361]
[1745443531177,0.0485,93724.0,93723.0,0.00056361]
[1745443531346,0.05149501,93724.0,93723.0,0.00056361]
[1745443531545,0.05349501,93724.0,93723.0,0.00056361]
[1745443531854,0.0505,93724.0,93723.0,0.00056361]
[1745443539262,0.16038515,93724.0,93723.0,0.00056361]
[1745443539462,0.15838515,93724.0,93723.0,0.00056361]
[1745443539670,0.16138515,93724.0,93723.0,0.00056361]
[1745443539932,0.15938515,93724.0,93723.0,0.00056361]
[1745443540099,0.16238515,93724.0,93723.0,0.00056361]
[1745443540472,0.15638515,93724.0,93723.0,0.00056361]
[1745443540911,0.16039014,93724.0,93723.0,0.00056361]
[1745443541311,0.16339014,93724.0,93723.0,0.00056361]
[1745443550763,0.17336902,93724.0,93723.0,0.00056361]
[1745443551429,0.17636403,93724.0,93723.0,0.00056361]
[1745443552213,0.26019479,93723.0,93706.0,0.34]
[1745443552356,0.0468,93721.0,93712.0,5.416e-05]
[1745443552846,0.05746996,93721.0,93712.0,5.416e-05]
[1745443553362,0.05846996,93721.0,93712.0,5.416e-05]
[1745443555031,0.05946996,93721.0,93712.0,5.416e-05]
[1745443557091,0.0488,93721.0,93712.0,5.416e-05]
[1745443558105,0.05946996,93721.0,93705.0,0.2134336]
[1745443558306,0.05946996,93721.0,93705.0,0.21348776]
[1745443559259,0.05846996,93721.0,93705.0,5.416e-05]
[1745443559764,0.0106703,93718.0,93705.0,0.00105416]
[1745443560286,0.047,93717.0,93705.0,0.00105416]
[1745443560860,0.047,93717.0,93705.0,5.416e-05]
[1745443561614,0.26040847,93717.0,93705.0,5.416e-05]
[1745443561761,0.047,93717.0,93705.0,5.416e-05]
[1745443562311,0.26040847,93717.0,93705.0,0.00105416]
[1745443562608,0.047,93717.0,93705.0,5.416e-05]
[1745443562821,0.01067053,93716.0,93705.0,0.00105416]
[1745443562989,0.05767042,93717.0,93705.0,0.00105416]
[1745443563402,0.047,93717.0,93705.0,0.00105416]
[1745443563599,0.01067053,93716.0,93705.0,0.00105416]
[1745443563804,0.05767042,93717.0,93705.0,0.00105416]
[1745443565268,0.047,93717.0,93705.0,5.416e-05]
[1745443565415,0.047,93717.0,93705.0,0.00105416]
[1745443565624,0.047,93717.0,93705.0,5.416e-05]
[1745443566269,0.01067053,93716.0,93705.0,5.416e-05]
[1745443566574,0.05767042,93717.0,93705.0,0.00105416]
[1745443567070,0.047,93717.0,93705.0,0.00105416]
[1745443567499,0.05767042,93717.0,93705.0,0.00105416]
[1745443567648,0.047,93716.0,93705.0,0.00105416]
[1745443568032,0.047,93716.0,93705.0,5.416e-05]
[1745443568439,0.047,93716.0,93705.0,0.00105416]
[1745443568676,0.047,93716.0,93705.0,5.416e-05]
[1745443569547,0.0461,93715.0,93705.0,5.416e-05]
[1745443569728,0.047,93714.0,93705.0,5.416e-05]
[1745443571533,0.048,93714.0,93705.0,5.416e-05]
[1745443572819,0.049,93714.0,93705.0,5.416e-05]
[1745443574633,0.05967076,93714.0,93705.0,5.416e-05]
[1745443577445,0.01067087,93713.0,93705.0,5.416e-05]
[1745443578578,0.05767076,93714.0,93705.0,5.416e-05]
[1745443579008,0.001,93713.0,93705.0,5.416e-05]
[1745443579528,0.002,93713.0,93705.0,5.416e-05]
[1745443579672,0.01067099,93712.0,93705.0,5.416e-05]
[1745443580063,0.22708871,93711.0,93705.0,5.416e-05]
[1745443580295,0.22708871,93711.0,93701.0,0.34]
[1745443580296,0.01067121,93710.0,93701.0,0.12634258]
[1745443580496,0.01067099,93712.0,93703.0,6.897e-05]
[1745443580695,0.01167099,93712.0,93703.0,6.897e-05]
[1745443580930,0.01067156,93707.0,93703.0,6.897e-05]
[1745443581248,0.00299501,93706.0,93703.0,6.897e-05]
[1745443581483,0.01366657,93707.0,93703.0,6.897e-05]
[1745443581743,0.05847144,93708.0,93703.0,6.897e-05]
[1745443582189,0.06146645,93708.0,93703.0,6.897e-05]
[1745443582399,0.05847144,93708.0,93703.0,6.897e-05]
[1745443582619,0.001,93706.0,93703.0,6.897e-05]
[1745443583685,0.002,93706.0,93703.0,6.897e-05]
[1745443584132,0.001,93706.0,93703.0,6.897e-05]
[1745443584509,0.002,93706.0,93703.0,6.897e-05]
[1745443588513,0.002,93706.0,93704.0,0.01997829]
[1745443589183,0.002,93706.0,93705.0,0.01997829]
[1745443589540,0.0481,93706.0,93705.0,0.01997829]
[1745443589734,0.04486385,93706.0,93705.0,0.01997829]
[1745443590236,0.04386385,93706.0,93705.0,0.01997829]
[1745443590732,0.04486385,93706.0,93705.0,0.01997829]
[1745443591105,0.04586385,93706.0,93705.0,0.01997829]
[1745443591539,0.04486385,93706.0,93705.0,0.01997829]
[1745443591759,0.25929735,93706.0,93705.0,0.01997829]
[1745443597710,0.21343806,93704.0,93691.0,0.34]
[1745443597852,0.01067224,93701.0,93691.0,0.34004931]
[1745443598055,0.01067213,93702.0,93691.0,0.34004931]
[1745443598754,0.01067213,93702.0,93691.0,4.931e-05]
[1745443599050,0.22412346,93699.0,93691.0,4.931e-05]
[1745443599280,0.01067281,93696.0,93691.0,4.931e-05]
[1745443599487,0.01067304,93694.0,93691.0,0.00304931]
[1745443599915,0.01067304,93694.0,93691.0,4.931e-05]
[1745443600266,0.01067304,93694.0,93691.0,0.00404931]
[1745443600466,0.01067304,93694.0,93691.0,0.00104931]
[1745443600681,0.00299501,93695.0,93691.0,4.931e-05]
[1745443601043,0.001,93694.0,93691.0,4.931e-05]
[1745443601580,0.002,93694.0,93691.0,4.931e-05]
[1745443601993,0.01267304,93694.0,93691.0,4.931e-05]
[1745443602396,0.002,93694.0,93691.0,4.931e-05]
[1745443603015,0.01267304,93694.0,93691.0,4.931e-05]
[1745443603428,0.002,93694.0,93691.0,4.931e-05]
[1745443603918,0.003,93694.0,93691.0,4.931e-05]
[1745443604543,0.0456,93693.0,93691.0,4.931e-05]
[1745443606644,0.0476,93693.0,93691.0,4.931e-05]
[1745443607052,0.0486,93693.0,93691.0,4.931e-05]
[1745443608423,0.32035553,93692.0,93691.0,4.931e-05]
[1745443609799,0.32235553,93692.0,93691.0,4.931e-05]
[1745443610330,0.32335553,93692.0,93691.0,4.931e-05]
[1745443610607,0.10989014,93692.0,93691.0,4.931e-05]
[1745443612692,0.20429014,93692.0,93691.0,4.931e-05]
[1745443612911,0.046,93691.0,93677.0,0.21349805]
[1745443613116,0.15289014,93691.0,93677.0,0.21356709]
[1745443614167,0.15289014,93691.0,93677.0,0.21556709]
[1745443614360,0.15289014,93691.0,93679.0,0.21349387]
[1745443614602,0.15289014,93691.0,93677.0,0.21756709]
[1745443614813,0.15289014,93691.0,93679.0,0.21349355]
[1745443615428,0.15289014,93691.0,93679.0,0.21449355]
[1745443616149,0.15289014,93691.0,93680.0,0.34]
[1745443616329,0.046,93690.0,93680.0,0.34]
[1745443616885,0.046,93688.0,93680.0,0.34]
[1745443617015,0.10689014,93687.0,93680.0,0.34]
[1745443617215,0.046,93686.0,93677.0,0.34006904]
[1745443617658,0.046,93686.0,93680.0,0.001]
[1745443617834,0.046,93686.0,93677.0,0.34006904]
[1745443618606,0.046,93686.0,93677.0,0.5545672]
[1745443620463,0.046,93686.0,93677.0,0.34106904]
[1745443622863,0.046,93686.0,93677.0,0.5545669]
[1745443626918,0.21344962,93699.0,93677.0,0.5545669]
[1745443626919,0.0464,93702.0,93683.0,0.01067429]
[1745443627143,0.0464,93702.0,93690.0,0.24120381]
[1745443628907,0.0494,93702.0,93690.0,0.24120381]
[1745443629306,0.01067224,93701.0,93690.0,0.24120381]
[1745443629974,0.01067235,93700.0,93690.0,0.24120381]
[1745443631749,0.01367235,93700.0,93690.0,0.24120381]
[1745443632322,0.21344944,93699.0,93690.0,0.24120381]
[1745443632956,0.01067258,93698.0,93690.0,0.24120381]
[1745443633163,0.01067247,93699.0,93690.0,0.24120381]
[1745443633773,0.01367247,93699.0,93690.0,0.24120381]
[1745443635060,0.01667247,93699.0,93690.0,0.24120381]
[1745443635719,0.0106727,93697.0,93690.0,0.24120381]
[1745443635925,0.01067258,93698.0,93690.0,0.24120381]
[1745443636765,0.006,93699.0,93690.0,0.24120381]
[1745443636985,0.01367247,93699.0,93690.0,0.24120381]
[1745443637557,0.003,93697.0,93690.0,0.24120381]
[1745443638366,0.01067258,93698.0,93690.0,0.24120381]
[1745443638577,0.002,93697.0,93690.0,0.24120381]
[1745443639180,0.0464,93696.0,93690.0,0.24120381]
[1745443641239,0.0484,93696.0,93690.0,0.24120381]
[1745443641435,0.0504,93696.0,93690.0,0.24120381]
[1745443641988,0.0504,93696.0,93687.0,0.34]
[1745443642811,0.0484,93696.0,93687.0,0.34]
[1745443643019,0.0464,93696.0,93687.0,0.34]
[1745443643262,0.0474,93696.0,93687.0,0.34]
[1745443644209,0.0494,93696.0,93687.0,0.34]
[1745443653146,0.0494,93696.0,93684.0,0.34]
[1745443653908,0.0484,93696.0,93684.0,0.34]
[1745443654114,0.0464,93696.0,93684.0,0.34]
[1745443655047,0.0474,93696.0,93684.0,0.34]
[1745443659625,0.01067338,93691.0,93677.0,0.34006904]
[1745443659830,0.0463,93690.0,93681.0,0.34]
[1745443659976,0.05697349,93690.0,93681.0,0.34]
[1745443660720,0.0463,93690.0,93681.0,0.34]
[1745443663146,0.0463,93690.0,93681.0,0.341]
[1745443670567,0.0463,93690.0,93683.0,0.21348419]
[1745443672333,0.0473,93690.0,93683.0,0.21348419]
[1745443673561,0.0473,93690.0,93681.0,0.55348916]
[1745443675248,0.0463,93690.0,93681.0,0.55348916]
[1745443676076,0.0463,93690.0,93681.0,0.55448916]
[1745443676889,0.0463,93690.0,93681.0,0.341]
[1745443684326,0.0463,93690.0,93681.0,0.55448914]
[1745443686743,0.0463,93690.0,93681.0,0.001]
[1745443688251,0.0463,93690.0,93682.0,0.34]
[1745443692746,0.0463,93690.0,93684.0,0.34]
[1745443693954,0.0463,93690.0,93684.0,0.1616143]
[1745443694100,0.0473,93690.0,93683.0,0.21348562]
[1745443694971,0.0463,93690.0,93683.0,0.21348562]
[1745443695267,0.0463,93690.0,93681.0,0.2134885]
[1745443695268,0.0473,93690.0,93681.0,0.2134885]
[1745443695428,0.0473,93690.0,93682.0,0.21348631]
[1745443696656,0.0463,93690.0,93682.0,0.21348631]
[1745443697996,0.0463,93690.0,93683.0,0.34]
[1745443700072,0.0473,93690.0,93683.0,0.34]
[1745443702977,0.0473,93690.0,93682.0,0.34]
[1745443703733,0.0463,93690.0,93682.0,0.34]
[1745443703896,0.0463,93690.0,93683.0,0.01998291]
[1745443704328,0.0463,93690.0,93684.0,0.01998291]
[1745443704725,0.0463,93690.0,93685.0,0.01998291]
[1745443705279,0.0463,93690.0,93682.0,0.34]
[1745443706190,0.0473,93690.0,93682.0,0.34]
[1745443706667,0.0463,93690.0,93682.0,0.34]
[1745443711261,0.0463,93690.0,93681.0,0.2134885]
[1745443712671,0.0463,93690.0,93680.0,0.21349274]
[1745443712874,0.0463,93690.0,93681.0,0.2144884]
[1745443713417,0.0463,93690.0,93682.0,0.34]
[1745443714739,0.0463,93690.0,93684.0,0.34]
[1745443715197,0.0463,93690.0,93683.0,0.2134859]
[1745443716913,0.0473,93690.0,93683.0,0.2134859]
[1745443722645,0.0473,93690.0,93684.0,0.2134823]
[1745443723556,0.0463,93690.0,93684.0,0.2134823]
[1745443724055,0.0463,93690.0,93685.0,0.01999119]
[1745443724614,0.0463,93690.0,93686.0,0.01999119]
[1745443725016,0.0463,93690.0,93687.0,0.01999119]
[1745443725017,0.0473,93690.0,93687.0,0.01999119]
[1745443725605,0.0463,93690.0,93688.0,0.01999119]
[1745443725806,0.0473,93690.0,93688.0,0.01999119]
[1745443726058,0.0483,93690.0,93683.0,0.2134857]
[1745443726251,0.0473,93690.0,93683.0,0.2134857]
[1745443726460,0.0483,93690.0,93683.0,0.2134857]
[1745443726653,0.0503,93690.0,93683.0,0.2134857]
[1745443726856,0.0493,93690.0,93683.0,0.2134857]
[1745443727091,0.0483,93690.0,93683.0,0.2134857]
[1745443727246,0.0473,93690.0,93683.0,0.2134857]
[1745443728325,0.0483,93690.0,93683.0,0.2134857]
[1745443729226,0.0483,93690.0,93681.0,0.21348855]
[1745443730276,0.0473,93690.0,93681.0,0.21348855]
[1745443730482,0.0463,93690.0,93681.0,0.21348855]
[1745443730656,0.0463,93690.0,93681.0,0.21448855]
[1745443739249,0.0463,93690.0,93683.0,0.213484]
[1745443739787,0.0463,93690.0,93684.0,0.01999163]
[1745443740188,0.0463,93690.0,93685.0,0.01999163]
[1745443740408,0.0473,93690.0,93685.0,0.01999163]
[1745443740754,0.0473,93690.0,93686.0,0.01999163]
[1745443741296,0.0483,93690.0,93686.0,0.01999163]
[1745443741494,0.0473,93690.0,93683.0,0.213484]
[1745443741778,0.0463,93690.0,93683.0,0.213484]
[1745443742898,0.0473,93690.0,93683.0,0.213484]
[1745443743098,0.0483,93690.0,93683.0,0.213484]
[1745443743298,0.0473,93690.0,93683.0,0.213484]
[1745443743701,0.0483,93690.0,93683.0,0.213484]
[1745443754616,0.0483,93690.0,93684.0,0.21348172]
[1745443754863,0.0483,93690.0,93683.0,0.213484]
[1745443755414,0.0473,93690.0,93683.0,0.213484]
[1745443756288,0.0463,93690.0,93683.0,0.213484]
[1745443756490,0.0463,93690.0,93684.0,0.21348219]
[1745443757623,0.0473,93690.0,93684.0,0.21348219]
[1745443758050,0.0463,93690.0,93684.0,0.21348219]
[1745443758457,0.0473,93690.0,93684.0,0.21348219]
[1745443779432,0.0473,93690.0,93685.0,0.21347989]
[1745443780392,0.0463,93690.0,93684.0,0.21348219]
[1745443780545,0.0483,93690.0,93684.0,0.21348219]
[1745443781211,0.0473,93690.0,93684.0,0.21348219]
[1745443781609,0.0483,93690.0,93688.0,0.21347252]
[1745443781944,0.001,93690.0,93688.0,0.21347252]
[1745443782147,0.001,93690.0,93688.0,0.21646083]
[1745443782326,0.001,93690.0,93689.0,0.0029883]
[1745443782530,0.001,93690.0,93689.0,0.10689014]
[1745443782772,0.001,93690.0,93689.0,0.15599014]
[1745443782988,0.002,93690.0,93689.0,0.15599014]
[1745443783207,0.001,93690.0,93689.0,0.49599014]
[1745443783406,0.004,93690.0,93689.0,0.49699014]
[1745443783826,0.002,93690.0,93689.0,0.49699014]
[1745443784202,0.0488,93710.0,93695.0,0.01067292]
[1745443784402,0.0488,93710.0,93701.0,0.21344363]
[1745443786130,0.0508,93710.0,93701.0,0.21344363]
[1745443786829,0.0538,93710.0,93701.0,0.21344363]
[1745443787703,0.0538,93710.0,93699.0,0.21259495]
[1745443788271,0.0538,93710.0,93701.0,0.21344363]
[1745443788735,0.0518,93710.0,93701.0,0.21344363]
[1745443789098,0.0528,93710.0,93699.0,0.21259495]
[1745443789513,0.0498,93710.0,93699.0,0.21259495]
[1745443789827,0.0508,93710.0,93699.0,0.21259495]
[1745443790148,0.0518,93710.0,93699.0,0.21259495]
[1745443794575,0.0518,93710.0,93701.0,0.2134445]
[1745443795438,0.0508,93710.0,93701.0,0.2134445]
[1745443796138,0.0538,93710.0,93701.0,0.2134445]
[1745443800639,0.0538,93710.0,93701.0,0.34]
[1745443802231,0.0508,93710.0,93702.0,0.21344106]
[1745443802410,0.0488,93710.0,93702.0,0.21344106]
[1745443802790,0.0508,93710.0,93702.0,0.21344106]
[1745443802959,0.0528,93710.0,93702.0,0.21344106]
[1745443803142,0.0508,93710.0,93702.0,0.21344106]
[1745443804195,0.0508,93710.0,93701.0,0.34]
[1745443804405,0.0538,93710.0,93701.0,0.34]
[1745443805283,0.0518,93710.0,93701.0,0.55344354]
[1745443805508,0.0508,93710.0,93701.0,0.55344354]
[1745443806168,0.0528,93710.0,93701.0,0.55344354]
[1745443815005,0.0528,93710.0,93703.0,0.34]
[1745443815177,0.0528,93710.0,93703.0,0.55343868]
[1745443816003,0.0508,93710.0,93703.0,0.55343868]
[1745443816225,0.0538,93710.0,93703.0,0.55343868]
[1745443817226,0.0518,93710.0,93703.0,0.55343868]
[1745443817527,0.0538,93710.0,93703.0,0.55343868]
[1745443819027,0.0538,93710.0,93703.0,0.34]
[1745443820436,0.0538,93710.0,93703.0,0.136807]
[1745443822749,0.0538,93710.0,93702.0,0.21344034]
[1745443823757,0.0518,93710.0,93702.0,0.21344034]
[1745443823957,0.0488,93710.0,93702.0,0.21344034]
[1745443824165,0.0508,93710.0,93702.0,0.21344034]
[1745443824321,0.0538,93710.0,93702.0,0.21344034]
[1745443824661,0.0538,93710.0,93703.0,0.21343806]
[1745443825071,0.0538,93710.0,93704.0,0.21343665]
[1745443825565,0.0508,93710.0,93704.0,0.21343665]
[1745443825862,0.0538,93710.0,93704.0,0.21343665]
[1745443826607,0.0538,93710.0,93701.0,0.01067224]
[1745443826767,0.0518,93710.0,93701.0,0.01067224]
[1745443826963,0.0518,93710.0,93707.0,0.21342936]
[1745443827143,0.0508,93710.0,93707.0,0.21342936]
[1745443827341,0.0538,93710.0,93707.0,0.21342936]
[1745443827856,0.0488,93710.0,93707.0,0.21342936]
[1745443828140,0.0528461,93710.0,93709.0,0.21342667]
[1745443828332,0.0548461,93710.0,93709.0,0.21342667]
[1745443829016,0.0508461,93710.0,93709.0,0.21342667]
[1745443829603,0.0508461,93710.0,93709.0,0.23338233]
[1745443830346,0.0548461,93710.0,93709.0,0.23338233]
[1745443830558,0.0578461,93710.0,93709.0,0.23338233]
[1745443831206,0.0528461,93710.0,93709.0,0.23338233]
[1745443831381,0.0558461,93710.0,93709.0,0.21342667]